Cogmind - Beta 14 @@@ ROGUE MODE // 2024.12.21 @ 20:33:08 Player: blackdogzx Result: Destroyed by S-10 Pest with Light Assault Rifle Performance ------------- Evolutions (0) 0 Regions Visited (1) 200 Robots Destroyed (6) 30 Value Destroyed (136) 136 Prototype IDs (0) 0 Alien Tech Used (0) 0 Bonus (0) 0 TOTAL SCORE: 366 Bonus ------- None Cogmind --------- Core Integrity 0/250 Matter 211/300 Energy 100/100 System Corruption 0% Temperature Cool (0) Movement Core (100) Ox1 Location -10/Materials Parts ------- > --- POWER (1) -------- (None) > --- PROPULSION (2) --- (None) > --- UTILITY (2) ------ Small Storage Unit > --- WEAPON (2) ------- (None) > --- INVENTORY (8) ---- Aluminum Leg Peak State ------------ > --- POWER ------------ Ion Engine > --- PROPULSION ------- Aluminum Leg Aluminum Leg > --- UTILITY ---------- Small Storage Unit > --- WEAPON ----------- Assault Rifle Grenade Launcher > --- INVENTORY -------- (None) [Rating: 6] Favorites ----------- Power Ion Engine Engine Ion Engine Propulsion Aluminum Leg Leg Aluminum Leg Utility Small Storage Unit Storage Small Storage Unit Weapon Assault Rifle Ballistic Gun Assault Rifle Launcher Grenade Launcher Build | -11 -10 ------- Run | Yrd Mat Slots Evolved . | . . Power . | . . Propulsion . | . . Utility . | . . Weapon . | . . Parts Attached 13 | 5 8 Power 3 | 1 2 Engine 3 | 1 2 Core . | . . Reactor . | . . Propulsion 5 | 2 3 Treads . | . . Leg 5 | 2 3 Wheel . | . . Hover . | . . Flight . | . . Utility 1 | 1 . Device . | . . Storage 1 | 1 . Processor . | . . Hackware . | . . Protection . | . . Artifact . | . . Weapon 4 | 1 3 Energy Gun . | . . Energy Cannon . | . . Ballistic Gun 2 | 1 1 Ballistic Cannon . | . . Launcher 2 | . 2 Special Weapon . | . . Impact Weapon . | . . Slashing Weapon . | . . Piercing Weapon . | . . Special Melee Weapon . | . . Unidentified Prototypes . | . . Parts Lost 5 | . 5 Power 1 | . 1 Propulsion 2 | . 2 Utility . | . . Weapon 2 | . 2 Highest Loss Streak 4 | . 4 To Critical Strikes . | . . Average Slot Usage (%) 67 | . 67 Engine 7 | . 7 Leg 26 | . 26 Storage 14 | . 14 Ballistic Gun 12 | . 12 Launcher 6 | . 6 Peak Build Rating 6 | 5 6 Average Rating 4 | 3 4 On Entrance 2 | . 5 Naked Turns . | . . Heaviest Build 15 | 12 15 Greatest Support 20 | 20 20 Greatest Overweight (x) 3 | 3 1 Average Overweight (x) . | . . Largest Inventory Capacity 8 | 8 8 Average Capacity 7 | 7 8 Most Carried 1 | . 1 Average Carried . | . . Final Capacity 8 | 8 8 Final Carried 1 | . 1 Class Distribution -------------------- 100% | Mutant Dominant Class ---------------- Mutant | -10/Materials Resources | -11 -10 ----------- Run | Yrd Mat Matter Collected 321 | 250 71 Remotely . | . . Salvage Created 102 | . 102 Parts 12 | . 12 Haulers Intercepted . | . . Recyclers Shooed . | . . Parts Field Recycled . | . . Retrieved Matter . | . . Parts Self-Destructed . | . . Prevented . | . . Kills | -11 -10 ------- Run | Yrd Mat Combat Hostiles Destroyed 5 | . 5 Guns 4 | . 4 AOE 1 | . 1 Classes Destroyed 3 | . 3 Builder 1 | . 1 Swarmer 3 | . 3 Grunt 2 | . 2 Best Kill Streak 6 | . 6 Combat Bots Only 5 | . 5 Max Kills in Single Turn 1 | . 1 Gunslinging . | . . Exploded 1 | . 1 Melee . | . . Uniques/NPCs Destroyed . | . . Combat | -11 -10 -------- Run | Yrd Mat Hostile Shots Fired 98 | . 98 Missed 33 | . 33 Damage Taken 647 | . 647 Core 252 | . 252 Absorbed by Shields . | . . Core Remaining (%) 100 | 100 . Volleys Fired 20 | . 20 Largest 2 | . 2 Hottest 50 | . 50 Shots Fired 25 | . 25 Gun 20 | . 20 Cannon . | . . Launcher 5 | . 5 Special . | . . Kinetic 20 | . 20 Thermal . | . . Explosive 5 | . 5 Electromagnetic . | . . Robot Hit Streak 4 | . 4 Robot Miss Streak 3 | . 3 Penetration Max . | . . Secondary Targets . | . . Shots Hit Robots 14 | . 14 Core Hits 9 | . 9 Critical Kills . | . . Critical Parts Destroyed . | . . Critical Strikes . | . . Melee Attacks . | . . Impact . | . . Slashing . | . . Piercing . | . . Sneak Attacks . | . . Combat Hostiles . | . . Follow-up Attacks . | . . Damage Inflicted 417 | . 417 Guns 149 | . 149 Cannons . | . . Explosions 265 | . 265 Melee . | . . Ramming 3 | . 3 Kinetic 149 | . 149 Thermal . | . . Explosive 265 | . 265 Electromagnetic . | . . Impact . | . . Slashing . | . . Piercing . | . . Highest Corruption . | . . Average Corruption . | . . Corruption Purged . | . . Corruption Blocked . | . . Overload Shots . | . . Overflow Damage 9 | . 9 Projectiles . | . . Explosions 9 | . 9 Melee . | . . Knockbacks . | . . Impact . | . . Kinetic . | . . Secondary . | . . Self-Inflicted Damage 19 | . 19 Shots 2 | . 2 Rammed . | . . Targets Rammed 2 | . 2 Kicked 2 | . 2 Crushed . | . . Highest Temperature 6 | . 6 Average Temperature 6 | . 6 Received Heat Transfer 138 | . 138 Siege Activations . | . . Robots Corrupted . | . . Combat Hostiles . | . . Parts Fried . | . . Impact Corruptions . | . . Robots Melted . | . . Combat Hostiles . | . . Parts Melted . | . . Heat Transferred . | . . Parts Sabotaged . | . . Parts Stolen . | . . Parts Stripped . | . . Power Chain Reactions . | . . Alert | -11 -10 ------- Run | Yrd Mat Peak Influence 173 | . 173 Initial . | . . Average 45 | . 53 Maximum Alert Level . | . . Low Security (%) 100 | 100 100 Level 1 . | . . Level 2 . | . . Level 3 . | . . Level 4 . | . . Level 5 . | . . High Security . | . . Max Security . | . . Squads Dispatched 1 | . 1 Investigation 1 | . 1 Extermination . | . . Reinforcement . | . . Assault . | . . Garrison . | . . Intercept . | . . Searches Triggered . | . . Construction Impeded . | . . Haulers Reinforced . | . . Active Scanning Responses . | . . Cargo Convoy Interrupts . | . . Stealth | -11 -10 --------- Run | Yrd Mat Distress Signals . | . . Communications Jammed . | . . Distress Signals . | . . Times Spotted 10 | . 10 Peak Tracking Total 4 | . 4 Tactical Retreats . | . . Traps | -11 -10 ------- Run | Yrd Mat Traps Triggered 4 | . 4 Indirectly . | . . Trap Hack Attempts . | . . Triggered . | . . Disarmed . | . . Reprogrammed . | . . Reused . | . . Traps Extracted . | . . Installed . | . . Triggered . | . . Machines | -11 -10 ---------- Run | Yrd Mat Machines Disabled 2 | . 2 Max in Single Turn 1 | . 1 Machines Repaired . | . . Machines Dismantled . | . . Machines Sabotaged . | . . Overloaded Fab Kills . | . . Hacking | -11 -10 --------- Run | Yrd Mat Machines Accessed 1 | . 1 Terminals 1 | . 1 Fabricators . | . . Repair Stations . | . . Recycling Units . | . . Scanalyzers . | . . Garrison Access . | . . Total Hacks 1 | . 1 Successful 1 | . 1 Failed . | . . Catastrophic . | . . Database Lockouts . | . . Manual . | . . Terminals 1 | . 1 Fabricators . | . . Repair Stations . | . . Recycling Units . | . . Scanalyzers . | . . Garrison Access . | . . Terminal Hacks 1 | . 1 Record 1 | . 1 Fabricator Hacks . | . . Repair Station Hacks . | . . Recycling Unit Hacks . | . . Scanalyzer . | . . Garrison Access Hacks . | . . Unauthorized Hacks . | . . Terminals . | . . Fabricators . | . . Repair Stations . | . . Recycling Units . | . . Scanalyzers . | . . Garrison Access . | . . Data Cores Recovered . | . . Used . | . . Hacking Detections . | . . Full Trace Events . | . . Feedback Events . | . . Feedback Blocked . | . . Robot Schematics Acquired . | . . Robots Built . | . . Authchips . | . . Time . | . . Total Robot Build Rating . | . . Part Schematics Acquired . | . . Parts Built . | . . Authchips . | . . Time . | . . Total Part Build Rating . | . . Parts Repaired . | . . Time . | . . Parts Recycled . | . . Recycled Matter . | . . Retrieved Matter . | . . Retrieved Components . | . . Parts Scanalyzed . | . . Part Schematics Acquired . | . . Parts Damaged . | . . Bothacking | -11 -10 ------------ Run | Yrd Mat Used RIF Installer . | . . Robots Hacked . | . . Non-combat . | . . Combat . | . . Robot Hacks Applied . | . . Relay Couplers Released . | . . Fabnet Peak Effective % . | . . Robots Rewired . | . . Allies Hacked . | . . Hacks Repelled . | . . Allies | -11 -10 -------- Run | Yrd Mat Total Allies . | . . Largest Group . | . . Highest-Rated Group . | . . Highest-Rated Ally . | . . Total Orders . | . . Ally Attacks . | . . Total Damage . | . . Kills . | . . Allies Corrupted . | . . Allies Melted . | . . Intel | -11 -10 ------- Run | Yrd Mat Robot Analysis Total . | . . Derelict Logs Recovered . | . . Drone Launches . | . . Drone Recoveries . | . . Exploration | -11 -10 ------------- Run | Yrd Mat Turns Passed 324 | 50 274 Spaces Moved 195 | 35 160 Core 6 | 6 . Treads . | . . Legs 189 | 29 160 Wheels . | . . Hover . | . . Flight . | . . Fastest Speed 50 | 50 120 Average Speed 120 | 122 120 Slowest Speed 200 | 200 190 Overloaded Moves . | . . Propulsion Burnouts . | . . Robots Hopped . | . . Cave-ins Triggered . | . . Exploration Rate (%) 17 | 3 31 Regions Visited 1 Branch Regions . Pre-discovered Areas . | . . Known Exits Taken . | . . Unknown Exits Taken 1 | 1 . Scrap Searched . | . . Spaces Dug . | . . Terrain Destroyed 11 | . 11 Melee . | . . Projectile . | . . AOE 11 | . 11 Terrain Rammed . | . . Walls Destroyed . | . . Machines Disabled . | . . Actions | -11 -10 --------- Run | Yrd Mat Total 251 | 39 212 Wait 22 | . 22 Move 194 | 34 160 Hop . | . . Pick Up . | . . Fast Attach 12 | 5 7 Attach . | . . Detach . | . . Swap 1 | . 1 Drop . | . . Fire 20 | . 20 Melee . | . . Ram . | . . Kick 2 | . 2 Crush . | . . Escape Stasis . | . . Rewire . | . . Trap . | . . Miscellaneous . | . . Route ------- -11/Scrapyard -10/Materials (discovered 1 exit: [*Mat]) History --------- Turn | Location | Event 15 | -11/Scrapyard | Discovered new exit (range 16) 51 | -11/Scrapyard | Entered Materials 195 | -10/Materials | Discovered new exit (range 16) 302 | -10/Materials | Build established: Mutant 308 | -10/Materials | Core integrity fell below 50% 321 | -10/Materials | Core integrity fell below 20% 325 | -10/Materials | Destroyed by S-10 Pest with Light Assault Rifle Last Messages --------------- 00293_ U-05 Engineer lays Concrete. 00295_ Assault Rifle destroyed. 00295_ U-05 Engineer lays Concrete. 00295_ Lgt. Ion Engine destroyed. 00296_ K-01 Serf collects debris. 00296_ U-05 Engineer lays Concrete. 00303_ R-06 Scavenger collects Welding Torch. 00304_ U-05 Engineer lays Concrete. 00306_ K-01 Serf collects debris. 00308_ U-05 Engineer lays Concrete. 00311_ R-06 Scavenger collects Flight Unit. 00312_ U-05 Engineer lays Concrete. 00312_ Aluminum Leg destroyed. 00314_ U-05 Engineer lays Concrete. 00317_ Aluminum Leg destroyed. 00317_ U-05 Engineer builds a Door. 00318_ K-01 Serf collects debris. 00319_ S-10 Pest destroyed. 00320_ U-05 Engineer lays Concrete. 00321_ K-01 Serf collects debris. Map ----- +----------------------------------------------------+ | ??????????????# ########??????????????? | | ??????????????# # #??????????????? | | ??????????????# # #??????????????? | | ??????????????# # """ =#??????????????? | | ??????????????# + """ #??????????????? | | ??????????????# # """ #??????????????? | | ??????????????# # #??????????????? | | ??????????????# ########??????????????? | | ???????######## #?????????????????????? | | ???????# # #?????????????????????? | | ?####### # # #??????????????????? | | ?# # + #??????????????????? | | ?# ! ""# # ####??????????????????? | | ?# T"# # #?????????????????????? | | ?# ""# # #?????????????????????? | | ?# #+###### #?????????????????????? | | ?#! # # T # #?????????????????????? | | ?# # # # #?????????????????????? | | ?####+## # # #?????????????????????? | | ????# + # #?????????????????????? | | ????# # # #?????????????????????? | | ????# # # #?????????????????????? | | ???## # #k #?????????????????????? | | ???## # #?????????????????????? | | ???## | # #?????????????????????? | | ???## ##### @ #?????????????????????? | | ???## #???# #?????????????????????? | | ???## ###### #?????????????????????? | | ??## ## #?????????????????????? | | # # #?????????????????????? | | # """ # *%#?????????????????????? | | # """ # #?????????????????????? | | # """ # ss #?????????????????????? | | # # ########### +???????? | | # """ # ug = % #???????? | | # """ = * #???????? | | # """ # = """ #???????? | | # # = % "Y" /???????? | | # """ # ^ " " ?????????? | | # """ # u """ ^ ????????? | | # """ # """ #???????? | | # [# "" """ """ ???????? | | ######## ??????? | | ???????# ??????? | | ???????+ ##??????? | | ???????# ###"T"######+##### #???????? | | ???????# < #?#"""#??????????? ????????? | | ???????# #?#####??????????????????????? | | ???????#####????????????????????????????? | | ????????????????????????????????????????? | +----------------------------------------------------+ Best States ------------- Heat Dissipation 25 Energy Generation 10 Energy Capacity 250 Matter Stores 300 Matter Capacity 300 Sight Range 16 Terrain Scan Density 10 Evasion (%) 55 Item Schematics ----------------- None Robot Schematics ------------------ None Fabricated ------------ Nothing Alien Tech Used ----------------- None Achievements -------------- None Challenges ------------ None Game ------ Seed MagneticPhasingDoomcannon Manual? 0 Play Time 00:08:53 Cumulative 22.7 hours Start 2024.12.21 @ 20:28:06 End 2024.12.21 @ 20:33:08 Sessions 1 Manual Loads 0 Difficulty Rogue Special Mode None Game No. 37 Rogue 34 Adventurer 3 Explorer 0 Win Type - Total 0 Types 0/0/0/0/0/0/0/0/0 Lore% 9 Gallery% 19 Achievement% 16 Wizard Run 0 Options --------- Layout 1 ASCII 0 Keyboard 1 Movement Numpad Keybinds 0 Fullscreen 1 Font 24/Smallcaps Map View 50x35 Zoom Use 0% Tactical HUD 1 Map Filters NONE Filters NONE Steam 1 RUN: 926ac512-df3f-4f76-9f90-eaf443e39749